[Event "2026 Biel Blitz Open"]
[Site "Biel, CH"]
[Date "2026.07.19"]
[Round "7"]
[White "Mauger-Le-Cunff, Noah"]
[Black "Baury, Noe"]
[Result "0-1"]
[Board "51"]
[TimeControl "180+2"]
[WhiteFideId "36079308"]
[BlackFideId "651086867"]
[WhiteElo "1604"]
[BlackElo "1886"]
[WhiteClock "0:00:06"]
[BlackClock "0:00:08"]
[Variant "Standard"]
[EndDate "2026.07.19"]
[EndTime "14:07:46"]

1. e4 {[%clk 0:03:03]}  e5 {[%clk 0:03:04]} 2. Nf3 {[%clk 0:03:04]}  Nc6 {[%clk 0:03:03]} 3. Bc4 {[%clk 0:03:05]}  Nf6 {[%clk 0:03:06]}
4. d3 {[%clk 0:03:07]}  h6 {[%clk 0:03:04]} 5. Nc3 {[%clk 0:03:08]}  d6 {[%clk 0:03:05]} 6. Be3 {[%clk 0:03:08]}  Be7 {[%clk 0:03:01]}
7. Qd2 {[%clk 0:03:08]}  a6 {[%clk 0:03:02]} 8. h3 {[%clk 0:03:06]}  Be6 {[%clk 0:02:57]} 9. Bb3 {[%clk 0:03:07]}  Qd7 {[%clk 0:02:56]}
10. O-O-O {[%clk 0:02:44]}  d5 {[%clk 0:02:51]} 11. exd5 {[%clk 0:02:44]}  Nxd5 {[%clk 0:02:53]} 12. Nxd5 {[%clk 0:02:42]}  Bxd5 {[%clk 0:02:54]}
13. Bxd5 {[%clk 0:02:19]}  Qxd5 {[%clk 0:02:55]} 14. Kb1 {[%clk 0:02:07]}  O-O-O {[%clk 0:02:48]} 15. Qc3 {[%clk 0:01:46]}  f5 {[%clk 0:02:37]}
16. Rhe1 {[%clk 0:01:30]}  Bf6 {[%clk 0:02:27]} 17. Qb3 {[%clk 0:01:22]}  Qd7 {[%clk 0:02:11]} 18. Bd2 {[%clk 0:01:19]}  Rhe8 {[%clk 0:01:58]}
19. Bc3 {[%clk 0:01:17]}  g5 {[%clk 0:01:57]} 20. Nd2 {[%clk 0:01:02]}  Nd4 {[%clk 0:01:43]} 21. Qc4 {[%clk 0:01:01]}  Nc6 {[%clk 0:01:32]}
22. Qc5 {[%clk 0:00:51]}  Be7 {[%clk 0:01:30]} 23. Qc4 {[%clk 0:00:51]}  Bf6 {[%clk 0:01:24]} 24. Qc5 {[%clk 0:00:49]}  b6 {[%clk 0:01:24]}
25. Qa3 {[%clk 0:00:43]}  Kb7 {[%clk 0:01:24]} 26. Nc4 {[%clk 0:00:41]}  e4 {[%clk 0:01:13]} 27. Ne3 {[%clk 0:00:32]}  Bxc3 {[%clk 0:00:54]}
28. Qxc3 {[%clk 0:00:30]}  f4 {[%clk 0:00:56]} 29. dxe4 {[%clk 0:00:30]}  Qh7 {[%clk 0:00:43]} 30. Rxd8 {[%clk 0:00:22]}  Rxd8 {[%clk 0:00:39]}
31. Nd5 {[%clk 0:00:23]}  Qf7 {[%clk 0:00:31]} 32. f3 {[%clk 0:00:18]}  Re8 {[%clk 0:00:32]} 33. Nf6 {[%clk 0:00:15]}  Re6 {[%clk 0:00:31]}
34. Ng4 {[%clk 0:00:16]}  h5 {[%clk 0:00:30]} 35. Nf2 {[%clk 0:00:16]}  Qd7 {[%clk 0:00:27]} 36. Nd3 {[%clk 0:00:16]}  Re8 {[%clk 0:00:25]}
37. Qf6 {[%clk 0:00:15]}  Rg8 {[%clk 0:00:16]} 38. Qf5 {[%clk 0:00:14]}  Qd4 {[%clk 0:00:15]} 39. Qd5 {[%clk 0:00:05]}  Qg7 {[%clk 0:00:09]}
40. Qc4 {[%clk 0:00:05]}  Rf8 {[%clk 0:00:08]} 41. Nb4 {[%clk 0:00:06]} 0-1

[Event "2026 Biel Blitz Open"]
[Site "Biel, CH"]
[Date "2026.07.19"]
[Round "7"]
[White "Marinkovic, Zoran"]
[Black "Zumbrunn, Simon"]
[Result "1-0"]
[Board "52"]
[TimeControl "180+2"]
[WhiteFideId "1346083"]
[BlackFideId "1364146"]
[WhiteElo "2037"]
[BlackElo "1802"]
[WhiteClock "0:00:21"]
[BlackClock "0:00:32"]
[Variant "Standard"]
[EndDate "2026.07.19"]
[EndTime "14:05:24"]

1. e4 {[%clk 0:03:03]}  e5 {[%clk 0:03:04]} 2. Nf3 {[%clk 0:03:04]}  Nc6 {[%clk 0:03:05]} 3. d4 {[%clk 0:03:04]}  exd4 {[%clk 0:03:06]}
4. Nxd4 {[%clk 0:03:06]}  Nf6 {[%clk 0:03:07]} 5. Nxc6 {[%clk 0:03:06]}  bxc6 {[%clk 0:03:08]} 6. e5 {[%clk 0:03:03]}  Qe7 {[%clk 0:03:07]}
7. Qe2 {[%clk 0:02:56]}  Nd5 {[%clk 0:03:08]} 8. c4 {[%clk 0:02:49]}  Ba6 {[%clk 0:03:10]} 9. b3 {[%clk 0:02:34]}  g6 {[%clk 0:03:11]}
10. Bb2 {[%clk 0:02:29]}  Bg7 {[%clk 0:03:12]} 11. Nc3 {[%clk 0:02:11]}  Nf4 {[%clk 0:02:59]} 12. Qe3 {[%clk 0:01:52]}  Qxe5 {[%clk 0:02:55]}
13. O-O-O {[%clk 0:01:43]}  Qxe3+ {[%clk 0:02:45]} 14. fxe3 {[%clk 0:01:44]}  Ne6 {[%clk 0:02:42]} 15. h4 {[%clk 0:01:36]}  Bh6 {[%clk 0:02:41]}
16. Re1 {[%clk 0:01:29]}  O-O {[%clk 0:02:42]} 17. g4 {[%clk 0:01:29]}  Bg7 {[%clk 0:02:24]} 18. h5 {[%clk 0:01:24]}  Rfe8 {[%clk 0:02:19]}
19. Ne4 {[%clk 0:01:14]}  Bxb2+ {[%clk 0:01:48]} 20. Kxb2 {[%clk 0:01:16]}  Re7 {[%clk 0:01:34]} 21. g5 {[%clk 0:01:07]}  Nf8 {[%clk 0:01:06]}
22. Bd3 {[%clk 0:00:48]}  Rae8 {[%clk 0:01:02]} 23. Nf6+ {[%clk 0:00:48]}  Kg7 {[%clk 0:01:02]} 24. Nxe8+ {[%clk 0:00:44]}  Rxe8 {[%clk 0:01:03]}
25. hxg6 {[%clk 0:00:42]}  hxg6 {[%clk 0:00:53]} 26. Rh4 {[%clk 0:00:38]}  Re5 {[%clk 0:00:54]} 27. Rg4 {[%clk 0:00:21]}  Bc8 {[%clk 0:00:50]}
28. Reg1 {[%clk 0:00:19]}  d6 {[%clk 0:00:50]} 29. Re4 {[%clk 0:00:18]}  Nd7 {[%clk 0:00:36]} 30. Rxe5 {[%clk 0:00:20]}  Nxe5 {[%clk 0:00:37]}
31. Be4 {[%clk 0:00:21]}  f5 {[%clk 0:00:35]} 32. gxf6+ {[%clk 0:00:21]}  Kxf6 {[%clk 0:00:36]} 33. Kc3 {[%clk 0:00:23]}  Bf5 {[%clk 0:00:37]}
34. Bxf5 {[%clk 0:00:24]}  Kxf5 {[%clk 0:00:38]} 35. Rf1+ {[%clk 0:00:22]}  Ke4 {[%clk 0:00:38]} 36. Kd2 {[%clk 0:00:22]}  Nf3+ {[%clk 0:00:39]}
37. Ke2 {[%clk 0:00:23]}  Ne5 {[%clk 0:00:39]} 38. Rh1 {[%clk 0:00:20]}  g5 {[%clk 0:00:39]} 39. Rg1 {[%clk 0:00:22]}  g4 {[%clk 0:00:41]}
40. Rg3 {[%clk 0:00:22]}  d5 {[%clk 0:00:41]} 41. cxd5 {[%clk 0:00:22]}  cxd5 {[%clk 0:00:42]} 42. Rg1 {[%clk 0:00:21]}  c5 {[%clk 0:00:43]}
43. Rc1 {[%clk 0:00:20]}  c4 {[%clk 0:00:44]} 44. bxc4 {[%clk 0:00:21]}  dxc4 {[%clk 0:00:46]} 45. Rb1 {[%clk 0:00:21]}  Nd3 {[%clk 0:00:39]}
46. Rg1 {[%clk 0:00:20]}  Ne5 {[%clk 0:00:40]} 47. Rc1 {[%clk 0:00:22]}  Nf3 {[%clk 0:00:32]} 48. Rxc4+ {[%clk 0:00:22]}  Kf5 {[%clk 0:00:33]}
49. e4+ {[%clk 0:00:21]}  Kf4 {[%clk 0:00:33]} 50. Ra4 {[%clk 0:00:21]}  g3 {[%clk 0:00:32]} 51. e5+ {[%clk 0:00:21]} 1-0

[Event "2026 Biel Blitz Open"]
[Site "Biel, CH"]
[Date "2026.07.19"]
[Round "7"]
[White "Aryan Goyal"]
[Black "Mikavica, Mirko"]
[Result "1-0"]
[Board "53"]
[TimeControl "180+2"]
[WhiteFideId "366108825"]
[BlackFideId "908657"]
[WhiteElo "1748"]
[BlackElo "2015"]
[WhiteClock "0:00:04"]
[BlackClock "0:00:06"]
[Variant "Standard"]
[EndDate "2026.07.19"]
[EndTime "14:05:02"]

1. e4 {[%clk 0:03:03]}  d6 {[%clk 0:03:01]} 2. d4 {[%clk 0:03:04]}  Nf6 {[%clk 0:03:02]} 3. Nc3 {[%clk 0:03:05]}  Nbd7 {[%clk 0:03:03]}
4. Be3 {[%clk 0:03:04]}  e5 {[%clk 0:03:04]} 5. Nf3 {[%clk 0:03:04]}  Be7 {[%clk 0:03:03]} 6. h3 {[%clk 0:03:00]}  c6 {[%clk 0:03:05]}
7. a4 {[%clk 0:03:00]}  a5 {[%clk 0:02:58]} 8. Bc4 {[%clk 0:03:00]}  O-O {[%clk 0:02:59]} 9. O-O {[%clk 0:02:58]}  Qc7 {[%clk 0:02:57]}
10. Bb3 {[%clk 0:02:53]}  Rb8 {[%clk 0:02:44]} 11. Qe2 {[%clk 0:02:52]}  b6 {[%clk 0:02:32]} 12. Rfd1 {[%clk 0:02:45]}  Ba6 {[%clk 0:02:32]}
13. Qxa6 {[%clk 0:02:03]}  b5 {[%clk 0:02:17]} 14. axb5 {[%clk 0:02:03]}  c5 {[%clk 0:01:56]} 15. dxc5 {[%clk 0:01:43]}  Nxc5 {[%clk 0:01:53]}
16. Bxc5 {[%clk 0:01:41]}  Qxc5 {[%clk 0:01:51]} 17. Qc6 {[%clk 0:01:22]}  Qa7 {[%clk 0:01:50]} 18. Qc4 {[%clk 0:01:08]}  Nd7 {[%clk 0:01:37]}
19. Nd5 {[%clk 0:01:06]}  Bd8 {[%clk 0:01:23]} 20. Qe2 {[%clk 0:00:57]}  Nc5 {[%clk 0:01:19]} 21. Bc4 {[%clk 0:00:53]}  Ne6 {[%clk 0:01:07]}
22. Qe3 {[%clk 0:00:49]}  Qd7 {[%clk 0:01:02]} 23. Bf1 {[%clk 0:00:33]}  Kh8 {[%clk 0:00:54]} 24. b4 {[%clk 0:00:28]}  axb4 {[%clk 0:00:42]}
25. Qb3 {[%clk 0:00:06]}  Nc5 {[%clk 0:00:34]} 26. Qxb4 {[%clk 0:00:06]}  f5 {[%clk 0:00:33]} 27. exf5 {[%clk 0:00:06]}  Qxf5 {[%clk 0:00:34]}
28. Ne3 {[%clk 0:00:06]}  Qe6 {[%clk 0:00:30]} 29. Qc4 {[%clk 0:00:07]}  Qg6 {[%clk 0:00:24]} 30. Qg4 {[%clk 0:00:06]}  Qf6 {[%clk 0:00:19]}
31. Nd5 {[%clk 0:00:07]}  Qf7 {[%clk 0:00:19]} 32. Be2 {[%clk 0:00:04]}  Ne6 {[%clk 0:00:16]} 33. Bf1 {[%clk 0:00:05]}  h6 {[%clk 0:00:14]}
34. c4 {[%clk 0:00:05]}  Nc5 {[%clk 0:00:15]} 35. Qg3 {[%clk 0:00:05]}  Ne4 {[%clk 0:00:14]} 36. Qg4 {[%clk 0:00:06]}  Nc5 {[%clk 0:00:14]}
37. Ra2 {[%clk 0:00:06]}  Rc8 {[%clk 0:00:13]} 38. Nh2 {[%clk 0:00:07]}  Nb3 {[%clk 0:00:10]} 39. Qg3 {[%clk 0:00:06]}  Nd4 {[%clk 0:00:11]}
40. Qe3 {[%clk 0:00:05]}  Bg5 {[%clk 0:00:11]} 41. Qd3 {[%clk 0:00:04]}  Qxf2+ {[%clk 0:00:06]} 42. Rxf2 {[%clk 0:00:03]}  Nf5 {[%clk 0:00:06]}
43. Rxf5 {[%clk 0:00:04]} 1-0

[Event "2026 Biel Blitz Open"]
[Site "Biel, CH"]
[Date "2026.07.19"]
[Round "8"]
[White "Bu, Xiangzhi"]
[Black "Ghosh, Diptayan"]
[Result "1/2-1/2"]
[Board "1"]
[TimeControl "180+2"]
[WhiteFideId "8601445"]
[BlackFideId "5045207"]
[WhiteElo "2719"]
[BlackElo "2530"]
[WhiteTitle "GM"]
[BlackTitle "GM"]
[WhiteClock "0:00:37"]
[BlackClock "0:00:51"]
[Variant "Standard"]
[EndDate "2026.07.19"]
[EndTime "14:17:59"]

1. Nf3 {[%clk 0:03:03]}  d5 {[%clk 0:03:03]} 2. d4 {[%clk 0:03:04]}  Nf6 {[%clk 0:03:04]} 3. c4 {[%clk 0:03:05]}  e6 {[%clk 0:03:05]}
4. Nc3 {[%clk 0:03:06]}  Nbd7 {[%clk 0:03:05]} 5. cxd5 {[%clk 0:03:06]}  exd5 {[%clk 0:03:05]} 6. Bg5 {[%clk 0:03:07]}  h6 {[%clk 0:03:06]}
7. Bh4 {[%clk 0:03:08]}  Be7 {[%clk 0:03:06]} 8. e3 {[%clk 0:03:09]}  c6 {[%clk 0:03:06]} 9. Bd3 {[%clk 0:03:09]}  O-O {[%clk 0:03:07]}
10. Qc2 {[%clk 0:03:09]}  Re8 {[%clk 0:03:07]} 11. O-O {[%clk 0:03:10]}  Ne4 {[%clk 0:03:09]} 12. Bxe4 {[%clk 0:03:10]}  Bxh4 {[%clk 0:03:09]}
13. Bh7+ {[%clk 0:03:12]}  Kh8 {[%clk 0:03:10]} 14. Bd3 {[%clk 0:03:12]}  Be7 {[%clk 0:03:08]} 15. Rab1 {[%clk 0:03:13]}  a5 {[%clk 0:03:05]}
16. a3 {[%clk 0:03:11]}  Bd6 {[%clk 0:03:00]} 17. b4 {[%clk 0:03:07]}  axb4 {[%clk 0:03:00]} 18. axb4 {[%clk 0:03:08]}  Nf6 {[%clk 0:02:58]}
19. b5 {[%clk 0:02:59]}  c5 {[%clk 0:02:49]} 20. dxc5 {[%clk 0:02:55]}  Bxc5 {[%clk 0:02:50]} 21. Rfd1 {[%clk 0:02:50]}  Bg4 {[%clk 0:02:45]}
22. Be2 {[%clk 0:02:36]}  Rc8 {[%clk 0:02:36]} 23. Qb3 {[%clk 0:02:29]}  Be6 {[%clk 0:02:36]} 24. Nd4 {[%clk 0:02:30]}  Qd6 {[%clk 0:02:27]}
25. Nxe6 {[%clk 0:02:13]}  fxe6 {[%clk 0:02:25]} 26. Bf3 {[%clk 0:02:10]}  Qe5 {[%clk 0:01:56]} 27. Ne2 {[%clk 0:02:11]}  Bd6 {[%clk 0:01:57]}
28. g3 {[%clk 0:02:06]}  Rf8 {[%clk 0:01:51]} 29. Qd3 {[%clk 0:02:00]}  Kg8 {[%clk 0:01:15]} 30. Nf4 {[%clk 0:01:54]}  Rfe8 {[%clk 0:01:15]}
31. Rbc1 {[%clk 0:01:36]}  Rxc1 {[%clk 0:01:12]} 32. Rxc1 {[%clk 0:01:38]}  Qb2 {[%clk 0:01:12]} 33. Rb1 {[%clk 0:01:35]}  Qa3 {[%clk 0:01:11]}
34. Qxa3 {[%clk 0:01:11]}  Bxa3 {[%clk 0:01:13]} 35. h4 {[%clk 0:01:05]}  Kf7 {[%clk 0:01:09]} 36. Ra1 {[%clk 0:00:43]}  Bc5 {[%clk 0:01:03]}
37. Nd3 {[%clk 0:00:43]}  Bb6 {[%clk 0:01:02]} 38. g4 {[%clk 0:00:38]}  g5 {[%clk 0:00:59]} 39. hxg5 {[%clk 0:00:39]}  hxg5 {[%clk 0:01:00]}
40. Kf1 {[%clk 0:00:39]}  Rc8 {[%clk 0:00:59]} 41. Ke1 {[%clk 0:00:37]}  Ke7 {[%clk 0:00:51]} 1/2-1/2

[Event "2026 Biel Blitz Open"]
[Site "Biel, CH"]
[Date "2026.07.19"]
[Round "8"]
[White "Aronyak Ghosh"]
[Black "Dong, Hongfu"]
[Result "1-0"]
[Board "2"]
[TimeControl "180+2"]
[WhiteFideId "25072846"]
[BlackFideId "8626960"]
[WhiteElo "2488"]
[BlackElo "2290"]
[WhiteTitle "IM"]
[WhiteClock "0:01:35"]
[BlackClock "0:00:05"]
[Variant "Standard"]
[EndDate "2026.07.19"]
[EndTime "14:16:30"]

1. d4 {[%clk 0:03:02]}  Nf6 {[%clk 0:03:03]} 2. Bf4 {[%clk 0:03:02]}  d5 {[%clk 0:03:00]} 3. e3 {[%clk 0:03:03]}  c5 {[%clk 0:03:01]}
4. dxc5 {[%clk 0:03:03]}  e6 {[%clk 0:03:01]} 5. b4 {[%clk 0:03:01]}  a5 {[%clk 0:02:58]} 6. c3 {[%clk 0:03:01]}  axb4 {[%clk 0:02:18]}
7. cxb4 {[%clk 0:03:02]}  b6 {[%clk 0:00:57]} 8. Bxb8 {[%clk 0:02:58]}  Rxb8 {[%clk 0:00:58]} 9. Bb5+ {[%clk 0:02:58]}  Ke7 {[%clk 0:00:59]}
10. c6 {[%clk 0:02:46]}  Qd6 {[%clk 0:01:00]} 11. a3 {[%clk 0:02:38]}  g6 {[%clk 0:01:01]} 12. Nc3 {[%clk 0:02:34]}  Bg7 {[%clk 0:01:02]}
13. Nge2 {[%clk 0:02:31]}  e5 {[%clk 0:00:57]} 14. Rc1 {[%clk 0:02:28]}  Ra8 {[%clk 0:00:43]} 15. Ba4 {[%clk 0:02:24]}  Ba6 {[%clk 0:00:44]}
16. O-O {[%clk 0:02:05]}  Ra7 {[%clk 0:00:15]} 17. Bb5 {[%clk 0:01:57]}  Bc8 {[%clk 0:00:16]} 18. Bd3 {[%clk 0:01:58]}  Ba6 {[%clk 0:00:06]}
19. Bxa6 {[%clk 0:01:55]}  Rxa6 {[%clk 0:00:07]} 20. Qd3 {[%clk 0:01:50]}  Raa8 {[%clk 0:00:04]} 21. Nb5 {[%clk 0:01:48]}  Qd8 {[%clk 0:00:04]}
22. Rc2 {[%clk 0:01:42]}  Rc8 {[%clk 0:00:05]} 23. Rfc1 {[%clk 0:01:42]}  Ne8 {[%clk 0:00:07]} 24. c7 {[%clk 0:01:40]}  Qd7 {[%clk 0:00:08]}
25. Rc6 {[%clk 0:01:40]}  f5 {[%clk 0:00:04]} 26. Nec3 {[%clk 0:01:36]}  Nf6 {[%clk 0:00:04]} 27. Rd6 {[%clk 0:01:34]}  Qe8 {[%clk 0:00:05]}
28. Nxd5+ {[%clk 0:01:34]}  Nxd5 {[%clk 0:00:05]} 29. Qxd5 {[%clk 0:01:35]} 1-0

[Event "2026 Biel Blitz Open"]
[Site "Biel, CH"]
[Date "2026.07.19"]
[Round "8"]
[White "Savitha Shri B"]
[Black "Arjun Kalyan"]
[Result "0-1"]
[Board "3"]
[TimeControl "180+2"]
[WhiteFideId "35061887"]
[BlackFideId "35018701"]
[WhiteElo "2161"]
[BlackElo "2451"]
[WhiteTitle "IM"]
[BlackTitle "GM"]
[WhiteClock "0:00:10"]
[BlackClock "0:00:10"]
[Variant "Standard"]
[EndDate "2026.07.19"]
[EndTime "14:19:32"]

1. e4 {[%clk 0:03:03]}  e5 {[%clk 0:03:03]} 2. Nf3 {[%clk 0:03:05]}  Nc6 {[%clk 0:03:05]} 3. Bb5 {[%clk 0:03:06]}  a6 {[%clk 0:03:06]}
4. Ba4 {[%clk 0:03:08]}  Nf6 {[%clk 0:03:07]} 5. Nc3 {[%clk 0:03:09]}  Bc5 {[%clk 0:03:08]} 6. O-O {[%clk 0:03:09]}  d6 {[%clk 0:02:59]}
7. d3 {[%clk 0:03:08]}  h6 {[%clk 0:02:55]} 8. Be3 {[%clk 0:02:51]}  Bxe3 {[%clk 0:02:47]} 9. fxe3 {[%clk 0:02:52]}  b5 {[%clk 0:02:44]}
10. Bb3 {[%clk 0:02:53]}  Na5 {[%clk 0:02:44]} 11. d4 {[%clk 0:02:13]}  O-O {[%clk 0:02:10]} 12. dxe5 {[%clk 0:02:13]}  dxe5 {[%clk 0:02:11]}
13. Qxd8 {[%clk 0:02:05]}  Rxd8 {[%clk 0:02:12]} 14. Nxe5 {[%clk 0:02:06]}  Nxb3 {[%clk 0:02:13]} 15. axb3 {[%clk 0:02:07]}  Bb7 {[%clk 0:02:11]}
16. Rfd1 {[%clk 0:02:08]}  b4 {[%clk 0:02:03]} 17. Rxd8+ {[%clk 0:01:46]}  Rxd8 {[%clk 0:02:03]} 18. Nd5 {[%clk 0:01:47]}  Nxd5 {[%clk 0:01:37]}
19. exd5 {[%clk 0:01:47]}  Rxd5 {[%clk 0:01:38]} 20. Nd3 {[%clk 0:01:48]}  a5 {[%clk 0:01:34]} 21. e4 {[%clk 0:01:24]}  Rg5 {[%clk 0:01:33]}
22. Re1 {[%clk 0:01:25]}  f5 {[%clk 0:01:31]} 23. Nc5 {[%clk 0:01:21]}  Bc6 {[%clk 0:01:08]} 24. Re2 {[%clk 0:00:56]}  fxe4 {[%clk 0:01:04]}
25. Nxe4 {[%clk 0:00:55]}  Re5 {[%clk 0:00:48]} 26. Ng3 {[%clk 0:00:56]}  Rxe2 {[%clk 0:00:46]} 27. Nxe2 {[%clk 0:00:57]}  Be4 {[%clk 0:00:45]}
28. Nd4 {[%clk 0:00:57]}  c5 {[%clk 0:00:42]} 29. Ne6 {[%clk 0:00:58]}  c4 {[%clk 0:00:37]} 30. bxc4 {[%clk 0:00:30]}  a4 {[%clk 0:00:27]}
31. Nd4 {[%clk 0:00:18]}  a3 {[%clk 0:00:26]} 32. bxa3 {[%clk 0:00:18]}  bxa3 {[%clk 0:00:28]} 33. Kf2 {[%clk 0:00:17]}  a2 {[%clk 0:00:27]}
34. Nb3 {[%clk 0:00:18]}  Bxc2 {[%clk 0:00:26]} 35. Na1 {[%clk 0:00:19]}  Bd3 {[%clk 0:00:23]} 36. c5 {[%clk 0:00:20]}  Be4 {[%clk 0:00:24]}
37. g3 {[%clk 0:00:19]}  Kf7 {[%clk 0:00:26]} 38. Ke3 {[%clk 0:00:21]}  Bg2 {[%clk 0:00:22]} 39. Kd4 {[%clk 0:00:19]}  Ke6 {[%clk 0:00:24]}
40. Nc2 {[%clk 0:00:19]}  Kd7 {[%clk 0:00:20]} 41. Kc3 {[%clk 0:00:19]}  Be4 {[%clk 0:00:19]} 42. Na1 {[%clk 0:00:17]}  Kc6 {[%clk 0:00:21]}
43. Kd4 {[%clk 0:00:18]}  Bf3 {[%clk 0:00:19]} 44. Ke3 {[%clk 0:00:17]}  Bd1 {[%clk 0:00:20]} 45. Kd4 {[%clk 0:00:18]}  Bf3 {[%clk 0:00:18]}
46. Ke3 {[%clk 0:00:19]}  Bg2 {[%clk 0:00:17]} 47. Kd4 {[%clk 0:00:17]}  Kb5 {[%clk 0:00:19]} 48. Nc2 {[%clk 0:00:16]}  Bh1 {[%clk 0:00:17]}
49. h4 {[%clk 0:00:15]}  Bg2 {[%clk 0:00:16]} 50. h5 {[%clk 0:00:03]}  Bf3 {[%clk 0:00:16]} 51. Na1 {[%clk 0:00:03]}  Kb4 {[%clk 0:00:16]}
52. Ke3 {[%clk 0:00:04]}  Bc6 {[%clk 0:00:11]} 53. Kd4 {[%clk 0:00:05]}  Bg2 {[%clk 0:00:12]} 54. Kd3 {[%clk 0:00:00]}  Kxc5 {[%clk 0:00:10]} 0-1

[Event "2026 Biel Blitz Open"]
[Site "Biel, CH"]
[Date "2026.07.19"]
[Round "8"]
[White "Shukhman, Anna"]
[Black "Mohammad Nubairshah Shaikh"]
[Result "1-0"]
[Board "4"]
[TimeControl "180+2"]
[WhiteFideId "54180058"]
[BlackFideId "5053196"]
[WhiteElo "2392"]
[BlackElo "2316"]
[WhiteTitle "WGM"]
[BlackTitle "IM"]
[WhiteClock "0:00:36"]
[BlackClock "0:00:13"]
[Variant "Standard"]
[EndDate "2026.07.19"]
[EndTime "14:19:12"]

1. e4 {[%clk 0:03:03]}  c6 {[%clk 0:03:03]} 2. d4 {[%clk 0:03:04]}  d5 {[%clk 0:03:05]} 3. e5 {[%clk 0:03:05]}  Bf5 {[%clk 0:03:05]}
4. Nf3 {[%clk 0:03:06]}  e6 {[%clk 0:03:07]} 5. Be2 {[%clk 0:03:07]}  Ne7 {[%clk 0:03:08]} 6. c3 {[%clk 0:03:08]}  h6 {[%clk 0:03:08]}
7. O-O {[%clk 0:03:07]}  Nd7 {[%clk 0:03:09]} 8. a4 {[%clk 0:03:09]}  Bh7 {[%clk 0:03:01]} 9. a5 {[%clk 0:03:08]}  a6 {[%clk 0:03:02]}
10. b4 {[%clk 0:03:03]}  Nc8 {[%clk 0:02:57]} 11. Ne1 {[%clk 0:02:56]}  Be7 {[%clk 0:02:43]} 12. Bd3 {[%clk 0:02:56]}  O-O {[%clk 0:02:40]}
13. f4 {[%clk 0:02:52]}  Bxd3 {[%clk 0:02:21]} 14. Nxd3 {[%clk 0:02:53]}  f6 {[%clk 0:02:22]} 15. f5 {[%clk 0:02:17]}  exf5 {[%clk 0:01:20]}
16. e6 {[%clk 0:02:18]}  Nb8 {[%clk 0:01:22]} 17. Rxf5 {[%clk 0:02:19]}  Nd6 {[%clk 0:01:23]} 18. Rf1 {[%clk 0:01:43]}  b6 {[%clk 0:01:11]}
19. axb6 {[%clk 0:01:35]}  Qxb6 {[%clk 0:01:04]} 20. Qh5 {[%clk 0:01:29]}  Ra7 {[%clk 0:00:17]} 21. Bxh6 {[%clk 0:01:28]}  Bd8 {[%clk 0:00:14]}
22. Bf4 {[%clk 0:01:27]}  Ne4 {[%clk 0:00:15]} 23. Rf3 {[%clk 0:01:23]}  c5 {[%clk 0:00:11]} 24. Qxd5 {[%clk 0:01:20]}  Qc6 {[%clk 0:00:08]}
25. Qxc6 {[%clk 0:01:18]}  Nxc6 {[%clk 0:00:09]} 26. bxc5 {[%clk 0:01:16]}  g5 {[%clk 0:00:09]} 27. Bd6 {[%clk 0:01:13]}  Re8 {[%clk 0:00:09]}
28. d5 {[%clk 0:01:13]}  Ne7 {[%clk 0:00:09]} 29. c4 {[%clk 0:01:13]}  Ng6 {[%clk 0:00:05]} 30. Nf2 {[%clk 0:01:11]}  Nxd6 {[%clk 0:00:03]}
31. cxd6 {[%clk 0:01:11]}  Bb6 {[%clk 0:00:05]} 32. d7 {[%clk 0:01:06]}  Rd8 {[%clk 0:00:04]} 33. Rxf6 {[%clk 0:01:07]}  Ne5 {[%clk 0:00:05]}
34. e7 {[%clk 0:01:05]}  Raxd7 {[%clk 0:00:04]} 35. exd8=Q+ {[%clk 0:01:04]}  Bxd8 {[%clk 0:00:05]} 36. Re6 {[%clk 0:01:03]}  Nxc4 {[%clk 0:00:05]}
37. Nc3 {[%clk 0:01:04]}  a5 {[%clk 0:00:06]} 38. Nfe4 {[%clk 0:00:59]}  Ne3 {[%clk 0:00:04]} 39. Nc5 {[%clk 0:00:36]}  Re7 {[%clk 0:00:03]}
40. Rxe7 {[%clk 0:00:36]}  Bxe7 {[%clk 0:00:05]} 41. N5e4 {[%clk 0:00:36]}  Bb4 {[%clk 0:00:06]} 42. Kf2 {[%clk 0:00:34]}  Nf5 {[%clk 0:00:04]}
43. g4 {[%clk 0:00:34]}  Nd4 {[%clk 0:00:03]} 44. Ne2 {[%clk 0:00:33]}  Nb5 {[%clk 0:00:03]} 45. Rd1 {[%clk 0:00:32]}  Kf8 {[%clk 0:00:04]}
46. d6 {[%clk 0:00:33]}  Ke8 {[%clk 0:00:04]} 47. d7+ {[%clk 0:00:34]}  Kd8 {[%clk 0:00:05]} 48. Nxg5 {[%clk 0:00:34]}  Bc5+ {[%clk 0:00:05]}
49. Kf3 {[%clk 0:00:34]}  Nd6 {[%clk 0:00:05]} 50. Ne6+ {[%clk 0:00:32]}  Kxd7 {[%clk 0:00:06]} 51. Nxc5+ {[%clk 0:00:33]}  Kc6 {[%clk 0:00:07]}
52. Na4 {[%clk 0:00:32]}  Nc4 {[%clk 0:00:08]} 53. Rc1 {[%clk 0:00:33]}  Kb5 {[%clk 0:00:10]} 54. Rxc4 {[%clk 0:00:34]}  Kxc4 {[%clk 0:00:11]}
55. Nec3 {[%clk 0:00:35]}  Kd4 {[%clk 0:00:11]} 56. h4 {[%clk 0:00:35]}  Ke5 {[%clk 0:00:13]} 57. h5 {[%clk 0:00:36]} 1-0